Workbook

Sheet Data
B2: FINANZA PRATICA
B3: Data
B4: Principali funzioni:
B5: ADESSO() | C5: =+NOW() -> 44141.71231
B6: OGGI() | C6: =+TODAY() -> 2020-11-06
B8: DATA.DIFF()
C9: 1966-12-21 | D9: 1991-05-02
B10: DATA.DIFF(anni) | C10: =+DATEDIF($C$9,$D$9,"y") -> 24
B11: DATA.DIFF(mesi) | C11: =+DATEDIF($C$9,$D$9,"m") -> 292
B12: DATA.DIFF(giorni) | C12: =+DATEDIF($C$9,$D$9,"d") -> 8898
C15: Data in cifre | D15: Data estesa | E15: Numero
A16: A) | B16: Come funziona:
B17: 1° data su Excel | C17: 1900-01-01 | D17: 1900-01-01 | E17: =+D17 -> 1
B18: Data oggi | C18: =+TODAY() -> 2020-11-06 | D18: =+TODAY() -> 2020-11-06 | E18: =+D18 -> 44141
A21: B) | B21: Giorni trascorsi da t a oggi:
B22: Data 1/1/2000 | C22: 2000-01-01 | D22: 2000-01-01 | E22: =+D22 -> 36526
B23: GG trascorsi da 2000 a oggi | C23: =+TODAY() -> 2020-11-06 | D23: =+TODAY() -> 2020-11-06 | E23: =+D23-D22 -> 7615
A26: C) | B26: Data scadenza da oggi a t:
B27: Data stipula finanziamento (oggi) | C27: =+TODAY() -> 2020-11-06 | D27: =+TODAY() -> 2020-11-06 | E27: =+D27 -> 44141
B28: Data scadenza finanziamento + 90 gg | C28: =+C27+90 -> 2021-02-04 | D28: =+D27+90 -> 2021-02-04 | E28: =+D28 -> 44231
A31: D) | B31: Estendere date finanziamento:
B32: Data stipula finanziamento | C32: 2020-01-15 | D32: 2020-01-15 | E32: =+D32 -> 43845
B33: 1° rata | C33: 2020-06-15 | D33: 2020-06-15 | E33: =+D33 -> 43997
B34: 2° rata | C34: 2021-01-15 | D34: 2021-01-15 | E34: =+D34 -> 44211
B35: 3° rata | C35: 2021-06-15 | D35: 2021-06-15 | E35: 44362
B36: 4° rata | C36: 2022-01-15 | D36: 2022-01-15 | E36: 44576
B37: 5° rata | C37: 2022-06-15 | D37: 2022-06-15 | E37: 44727

Sheet Finanziam.
B2: FINANZA PRATICA
B3: Finanziamento
B5: Debt | C5: 1000000
B6: T | C6: 10
B7: i | C7: 0.05
A10: A) | B10: t | C10: 0 | D10: 1 | E10: 2 | F10: 3 | G10: 4 | H10: 5 | I10: 6 | J10: 7 | K10: 8 | L10: 9 | M10: 10
B11: Debito | C11: =+$C$5 -> 1000000 | D11: =+C11-D12 -> 920495.425 | E11: =+D11-E12 -> 837015.6213 | F11: 749361.8274 | G11: 657325.3438 | H11: 560687.0361 | I11: 459216.8129 | J11: 352673.0786 | K11: 240802.1575 | L11: 123337.6904 | M11: 2.037268132e-10
B12: Quota Capitale | D12: =+D14-D13 -> 79504.57497 | E12: =+E14-E13 -> 83479.80371 | F12: 87653.7939 | G12: 92036.48359 | H12: 96638.30777 | I12: 101470.2232 | J12: 106543.7343 | K12: 111870.921 | L12: 117464.4671 | M12: 123337.6904
B13: Quota Interessi | D13: =+C11*$C$7 -> 50000 | E13: =+D11*$C$7 -> 46024.77125 | F13: 41850.78107 | G13: 37468.09137 | H13: 32866.26719 | I13: 28034.3518 | J13: 22960.84064 | K13: 17633.65393 | L13: 12040.10788 | M13: 6166.884522
B14: Rata | D14: =-PMT($C$7,$C$6,$C$5,0) -> 129504.575 | E14: =-PMT($C$7,$C$6,$C$5,0) -> 129504.575 | F14: 129504.575 | G14: 129504.575 | H14: 129504.575 | I14: 129504.575 | J14: 129504.575 | K14: 129504.575 | L14: 129504.575 | M14: 129504.575
A17: B) | B17: t | C17: 0 | D17: 1 | E17: 2 | F17: 3 | G17: 4 | H17: 5 | I17: 6 | J17: 7 | K17: 8 | L17: 9 | M17: 10
B18: Debito | C18: =+$C$5 -> 1000000 | D18: =+C18-D19 -> 920495.425 | E18: =+D18-E19 -> 837015.6213 | F18: 749361.8274 | G18: 657325.3438 | H18: 560687.0361 | I18: 459216.8129 | J18: 352673.0786 | K18: =+J18-K19 -> 240802.1575 | L18: =+K18-L19 -> 123337.6904 | M18: 2.037268132e-10
B19: Quota Capitale | D19: =-PPMT($C$7,D17,$C$6,$C$5,0,0) -> 79504.57497 | E19: =-PPMT($C$7,E17,$C$6,$C$5,0,0) -> 83479.80371 | F19: 87653.7939 | G19: 92036.48359 | H19: 96638.30777 | I19: 101470.2232 | J19: 106543.7343 | K19: 111870.921 | L19: 117464.4671 | M19: 123337.6904
B20: Quota Interessi | D20: =-IPMT($C$7,D17,$C$6,$C$5,0,0) -> 50000 | E20: =-IPMT($C$7,E17,$C$6,$C$5,0,0) -> 46024.77125 | F20: 41850.78107 | G20: 37468.09137 | H20: 32866.26719 | I20: 28034.3518 | J20: 22960.84064 | K20: 17633.65393 | L20: 12040.10788 | M20: 6166.884522
B21: Rata | D21: =-PMT($C$7,$C$6,$C$5,0) -> 129504.575 | E21: =-PMT($C$7,$C$6,$C$5,0) -> 129504.575 | F21: 129504.575 | G21: 129504.575 | H21: 129504.575 | I21: 129504.575 | J21: 129504.575 | K21: 129504.575 | L21: 129504.575 | M21: 129504.575
B26: Fianz. m.l.t. i fisso
B28: Condizioni applicate
B29: Debito | C29: 100000
B30: Anni | C30: 2
B31: Rate/anno | C31: 4
B32: Spese istruttoria % | C32: 0.005
B33: Spese istruttoria | C33: =+C32*C29 -> 500
B34: Spese estinzione anticipata | C34: 0.02
B35: T. Mora | C35: 0.143
B36: TAEG | C36: =+C55 -> 0.01446776945
B37: Stipula contratto | C37: =+TODAY() -> 2020-11-06
B38: Scadenza | C38: =+C37+360*C30 -> 2022-10-27
B39: T. Pre amm.to | C39: 0
B42: Tempo | C42: T=0 | D42: =+C37 -> 2020-11-06 | E42: =+D42+30 -> 2020-12-06 | F42: =+E42+30 -> 2021-01-05 | G42: 2021-02-04 | H42: 2021-03-06 | I42: 2021-04-05 | J42: 2021-05-05 | K42: 2021-06-04 | L42: 2021-07-04 | M42: 2021-08-03 | N42: 2021-09-02 | O42: 2021-10-02 | P42: 2021-11-01 | Q42: 2021-12-01 | R42: 2021-12-31 | S42: 2022-01-30 | T42: 2022-03-01 | U42: 2022-03-31 | V42: 2022-04-30 | W42: 2022-05-30 | X42: 2022-06-29 | Y42: 2022-07-29 | Z42: 2022-08-28 | AA42: 2022-09-27 | AB42: 2022-10-27
B43: T mesi | D43: 0 | E43: 1 | F43: 2 | G43: 3 | H43: 4 | I43: 5 | J43: 6 | K43: 7 | L43: 8 | M43: 9 | N43: 10 | O43: 11 | P43: 12 | Q43: 13 | R43: 14 | S43: 15 | T43: 16 | U43: 17 | V43: 18 | W43: 19 | X43: 20 | Y43: 21 | Z43: 22 | AA43: 23 | AB43: 24
B44: i Base | C44: 0.01
B45: i variabile = Euribor m | C45: 0
B46: TAN | C46: =C44+C45 -> 0.01
B47: tasso trimestrale | C47: =(C46/$C31) -> 0.0025
B49: Debito residuo | D49: =+C29 -> 100000 | E49: =D49-E50 -> 100000 | F49: 100000 | G49: 87608.96536 | H49: 87608.96536 | I49: 87608.96536 | J49: 75186.95313 | K49: 75186.95313 | L49: 75186.95313 | M49: 62733.88587 | N49: 62733.88587 | O49: 62733.88587 | P49: 50249.68594 | Q49: 50249.68594 | R49: 50249.68594 | S49: 37734.27552 | T49: 37734.27552 | U49: 37734.27552 | V49: 25187.57656 | W49: 25187.57656 | X49: 25187.57656 | Y49: 12609.51086 | Z49: 12609.51086 | AA49: 12609.51086 | AB49: 0
B50: Quota capitale | C50: =+SUM(D50:AB50) -> 100000 | E50: 0 | F50: 0 | G50: =+G52-G51 -> 12391.03464 | H50: 0 | I50: 0 | J50: =+J52-J51 -> 12422.01223 | K50: 0 | L50: 0 | M50: =+M52-M51 -> 12453.06726 | N50: 0 | O50: 0 | P50: =+P52-P51 -> 12484.19993 | Q50: 0 | R50: 0 | S50: =+S52-S51 -> 12515.41043 | T50: 0 | U50: 0 | V50: =+V52-V51 -> 12546.69895 | W50: 0 | X50: 0 | Y50: =+Y52-Y51 -> 12578.0657 | Z50: 0 | AA50: 0 | AB50: =+AB52-AB51 -> 12609.51086
B51: Quota interessi | C51: =+SUM(D51:AB51) -> 1128.277133 | E51: 0 | F51: 0 | G51: =D49*$C46*(12/$C31)/12 -> 250 | H51: 0 | I51: 0 | J51: =G49*$C46*(12/$C31)/12 -> 219.0224134 | K51: 0 | L51: 0 | M51: =J49*$C46*(12/$C31)/12 -> 187.9673828 | N51: 0 | O51: 0 | P51: =M49*$C46*(12/$C31)/12 -> 156.8347147 | Q51: 0 | R51: 0 | S51: =P49*$C46*(12/$C31)/12 -> 125.6242149 | T51: 0 | U51: 0 | V51: =S49*$C46*(12/$C31)/12 -> 94.33568879 | W51: 0 | X51: 0 | Y51: =V49*$C46*(12/$C31)/12 -> 62.96894141 | Z51: 0 | AA51: 0 | AB51: =Y49*$C46*(12/$C31)/12 -> 31.52377716
B52: Rata trimestrale | C52: 101128.2771 | E52: 0 | F52: 0 | G52: =-PMT($C46/$C31,$C31*$C30,$C29) -> 12641.03464 | H52: 0 | I52: 0 | J52: =-PMT($C46/$C31,$C31*$C30,$C29) -> 12641.03464 | K52: 0 | L52: 0 | M52: =-PMT($C46/$C31,$C31*$C30,$C29) -> 12641.03464 | N52: 0 | O52: 0 | P52: =-PMT($C46/$C31,$C31*$C30,$C29) -> 12641.03464 | Q52: 0 | R52: 0 | S52: =-PMT($C46/$C31,$C31*$C30,$C29) -> 12641.03464 | T52: 0 | U52: 0 | V52: =-PMT($C46/$C31,$C31*$C30,$C29) -> 12641.03464 | W52: 0 | X52: 0 | Y52: =-PMT($C46/$C31,$C31*$C30,$C29) -> 12641.03464 | Z52: 0 | AA52: 0 | AB52: =-PMT($C46/$C31,$C31*$C30,$C29) -> 12641.03464
B54: Flussi cassa | C54: -1628.277133 | D54: =+D49-$C33 -> 99500 | E54: =-E52 -> 0 | F54: =-F52 -> 0 | G54: -12641.03464 | H54: 0 | I54: 0 | J54: -12641.03464 | K54: 0 | L54: 0 | M54: -12641.03464 | N54: 0 | O54: 0 | P54: -12641.03464 | Q54: 0 | R54: 0 | S54: -12641.03464 | T54: 0 | U54: 0 | V54: -12641.03464 | W54: 0 | X54: 0 | Y54: -12641.03464 | Z54: 0 | AA54: 0 | AB54: -12641.03464
B55: TIR (TAEG) | C55: =+IRR(D54:AB54)*12 -> 0.01446776945
B61: Fianz. m.l.t. i variabile
B63: Condizioni applicate
B64: Debito | C64: 100000
B65: Anni | C65: 2
B66: Rate/anno | C66: 4
B67: Spese istruttoria % | C67: 0.005
B68: Spese istruttoria | C68: =+C67*C64 -> 500
B69: Spese estinzione anticipata | C69: 0.02
B70: T. Mora | C70: 0.143
B71: TAEG | C71: =+C95 -> 0.01113109265
B72: Stipula contratto | C72: =+TODAY() -> 2020-11-06
B73: Scadenza | C73: =+C72+360*C65 -> 2022-10-27
B74: T. Pre amm.to | C74: 0
B77: Tempo | C77: T=0 | D77: =+C72 -> 2020-11-06 | E77: =+D77+30 -> 2020-12-06 | F77: =+E77+30 -> 2021-01-05 | G77: 2021-02-04 | H77: 2021-03-06 | I77: 2021-04-05 | J77: 2021-05-05 | K77: 2021-06-04 | L77: 2021-07-04 | M77: 2021-08-03 | N77: 2021-09-02 | O77: 2021-10-02 | P77: 2021-11-01 | Q77: 2021-12-01 | R77: 2021-12-31 | S77: 2022-01-30 | T77: 2022-03-01 | U77: 2022-03-31 | V77: 2022-04-30 | W77: 2022-05-30 | X77: 2022-06-29 | Y77: 2022-07-29 | Z77: 2022-08-28 | AA77: 2022-09-27 | AB77: 2022-10-27
B78: t mesi | D78: 0 | E78: 1 | F78: 2 | G78: 3 | H78: 4 | I78: 5 | J78: 6 | K78: 7 | L78: 8 | M78: 9 | N78: 10 | O78: 11 | P78: 12 | Q78: 13 | R78: 14 | S78: 15 | T78: 16 | U78: 17 | V78: 18 | W78: 19 | X78: 20 | Y78: 21 | Z78: 22 | AA78: 23 | AB78: 24
B79: i Base | C79: 0.01 | D79: 0.01 | E79: 0.01 | F79: 0.01 | G79: 0.01 | H79: 0.01 | I79: 0.01 | J79: 0.01 | K79: 0.01 | L79: 0.01 | M79: 0.01 | N79: 0.01 | O79: 0.01 | P79: 0.01 | Q79: 0.01 | R79: 0.01 | S79: 0.01 | T79: 0.01 | U79: 0.01 | V79: 0.01 | W79: 0.01 | X79: 0.01 | Y79: 0.01 | Z79: 0.01 | AA79: 0.01 | AB79: 0.01
B80: i variabile = Euribor 3 m | C80: -0.0033357 | D80: -0.0033357 | E80: 0 | F80: 0 | G80: 0 | H80: 0 | I80: 0 | J80: 0 | K80: 0 | L80: 0 | M80: 0 | N80: 0 | O80: 0 | P80: 0 | Q80: 0 | R80: 0 | S80: 0 | T80: 0 | U80: 0 | V80: 0 | W80: 0 | X80: 0 | Y80: 0 | Z80: 0 | AA80: 0 | AB80: 0
B81: TAN | C81: =C79+C80 -> 0.0066643 | D81: =D79+D80 -> 0.0066643 | E81: 0.01 | F81: 0.01 | G81: 0.01 | H81: 0.01 | I81: 0.01 | J81: 0.01 | K81: 0.01 | L81: 0.01 | M81: 0.01 | N81: 0.01 | O81: 0.01 | P81: 0.01 | Q81: 0.01 | R81: 0.01 | S81: 0.01 | T81: 0.01 | U81: 0.01 | V81: 0.01 | W81: 0.01 | X81: 0.01 | Y81: 0.01 | Z81: 0.01 | AA81: 0.01 | AB81: 0.01
B82: tasso trimestrale | C82: =(C81/$C66) -> 0.001666075 | D82: =(D81/$C66) -> 0.001666075 | E82: 0.0025 | F82: 0.0025 | G82: 0.0025 | H82: 0.0025 | I82: 0.0025 | J82: 0.0025 | K82: 0.0025 | L82: 0.0025 | M82: 0.0025 | N82: 0.0025 | O82: 0.0025 | P82: 0.0025 | Q82: 0.0025 | R82: 0.0025 | S82: 0.0025 | T82: 0.0025 | U82: 0.0025 | V82: 0.0025 | W82: 0.0025 | X82: 0.0025 | Y82: 0.0025 | Z82: 0.0025 | AA82: 0.0025 | AB82: 0.0025
B84: Debito residuo | D84: =+C64 -> 100000 | E84: =D84-E85 -> 100000 | F84: 100000 | G84: =F84-G85 -> 87572.70877 | H84: =G84-H85 -> 87572.70877 | I84: 87572.70877 | J84: 75124.71274 | K84: 75124.71274 | L84: 75124.71274 | M84: 62655.97742 | N84: 62655.97742 | O84: 62655.97742 | P84: 50166.46825 | Q84: 50166.46825 | R84: 50166.46825 | S84: 37656.15062 | T84: 37656.15062 | U84: 37656.15062 | V84: 25124.98986 | W84: 25124.98986 | X84: 25124.98986 | Y84: 12572.95125 | Z84: 12572.95125 | AA84: 12572.95125 | AB84: -2.182787284e-11
B85: Quota capitale | C85: =+SUM(D85:AB85) -> 100000 | E85: 0 | F85: 0 | G85: =+G87-G86 -> 12427.29123 | H85: 0 | I85: 0 | J85: =+J87-J86 -> 12447.99603 | K85: 0 | L85: 0 | M85: =+M87-M86 -> 12468.73532 | N85: 0 | O85: 0 | P85: =+P87-P86 -> 12489.50917 | Q85: 0 | R85: 0 | S85: =+S87-S86 -> 12510.31763 | T85: 0 | U85: 0 | V85: =+V87-V86 -> 12531.16076 | W85: 0 | X85: 0 | Y85: =+Y87-Y86 -> 12552.03861 | Z85: 0 | AA85: 0 | AB85: =+AB87-AB86 -> 12572.95125
B86: Quota interessi | C86: =+SUM(D86:AB86) -> 751.1898311 | E86: 0 | F86: 0 | G86: =D84*$C81*(12/$C66)/12 -> 166.6075 | H86: 0 | I86: 0 | J86: =G84*$C81*(12/$C66)/12 -> 145.9027008 | K86: 0 | L86: 0 | M86: =J84*$C81*(12/$C66)/12 -> 125.1634058 | N86: 0 | O86: 0 | P86: =M84*$C81*(12/$C66)/12 -> 104.3895576 | Q86: 0 | R86: 0 | S86: =P84*$C81*(12/$C66)/12 -> 83.58109859 | T86: 0 | U86: 0 | V86: =S84*$C81*(12/$C66)/12 -> 62.73797114 | W86: 0 | X86: 0 | Y86: =V84*$C81*(12/$C66)/12 -> 41.86011748 | Z86: 0 | AA86: 0 | AB86: =Y84*$C81*(12/$C66)/12 -> 20.94747975
B87: Rata trimestrale | C87: 100751.1898 | E87: 0 | F87: 0 | G87: =-PMT($C81/$C66,$C66*$C65,$C64) -> 12593.89873 | H87: 0 | I87: 0 | J87: =-PMT($C81/$C66,$C66*$C65,$C64) -> 12593.89873 | K87: 0 | L87: 0 | M87: =-PMT($C81/$C66,$C66*$C65,$C64) -> 12593.89873 | N87: 0 | O87: 0 | P87: =-PMT($C81/$C66,$C66*$C65,$C64) -> 12593.89873 | Q87: 0 | R87: 0 | S87: =-PMT($C81/$C66,$C66*$C65,$C64) -> 12593.89873 | T87: 0 | U87: 0 | V87: =-PMT($C81/$C66,$C66*$C65,$C64) -> 12593.89873 | W87: 0 | X87: 0 | Y87: =-PMT($C81/$C66,$C66*$C65,$C64) -> 12593.89873 | Z87: 0 | AA87: 0 | AB87: =-PMT($C81/$C66,$C66*$C65,$C64) -> 12593.89873
B89: Debito residuo | D89: =+C64 -> 100000 | E89: =D89-E90 -> 100000 | F89: 100000 | G89: =F89-G90 -> 87572.70877 | H89: =G89-H90 -> 87572.70877 | I89: 87572.70877 | J89: 75124.71274 | K89: 75124.71274 | L89: 75124.71274 | M89: 62655.97742 | N89: 62655.97742 | O89: 62655.97742 | P89: 50166.46825 | Q89: 50166.46825 | R89: 50166.46825 | S89: 37656.15062 | T89: 37656.15062 | U89: 37656.15062 | V89: 25124.98986 | W89: 25124.98986 | X89: 25124.98986 | Y89: 12572.95125 | Z89: 12572.95125 | AA89: 12572.95125 | AB89: -2.182787284e-11
B90: Quota capitale | C90: =+SUM(D90:AB90) -> 100000 | E90: 0 | F90: 0 | G90: =+G85 -> 12427.29123 | H90: 0 | I90: 0 | J90: =+J85 -> 12447.99603 | K90: 0 | L90: 0 | M90: =+M85 -> 12468.73532 | N90: 0 | O90: 0 | P90: =+P85 -> 12489.50917 | Q90: 0 | R90: 0 | S90: =+S85 -> 12510.31763 | T90: 0 | U90: 0 | V90: =+V85 -> 12531.16076 | W90: 0 | X90: 0 | Y90: =+Y85 -> 12552.03861 | Z90: 0 | AA90: 0 | AB90: =+AB85 -> 12572.95125
B91: Quota interessi | C91: =+SUM(D91:AB91) -> 1043.792397 | E91: 0 | F91: 0 | G91: =D84*D81*(12/$C66)/12 -> 166.6075 | H91: 0 | I91: 0 | J91: =G84*G81*(12/$C66)/12 -> 218.9317719 | K91: 0 | L91: 0 | M91: =J84*J81*(12/$C66)/12 -> 187.8117819 | N91: 0 | O91: 0 | P91: =M84*M81*(12/$C66)/12 -> 156.6399435 | Q91: 0 | R91: 0 | S91: =P84*P81*(12/$C66)/12 -> 125.4161706 | T91: 0 | U91: 0 | V91: =S84*S81*(12/$C66)/12 -> 94.14037655 | W91: 0 | X91: 0 | Y91: =V84*V81*(12/$C66)/12 -> 62.81247465 | Z91: 0 | AA91: 0 | AB91: =Y84*Y81*(12/$C66)/12 -> 31.43237812
B92: Rata trimestrale | C92: 101043.7924 | E92: 0 | F92: 0 | G92: =+G90+G91 -> 12593.89873 | H92: 0 | I92: 0 | J92: =+J90+J91 -> 12666.9278 | K92: 0 | L92: 0 | M92: =+M90+M91 -> 12656.5471 | N92: 0 | O92: 0 | P92: =+P90+P91 -> 12646.14911 | Q92: 0 | R92: 0 | S92: =+S90+S91 -> 12635.7338 | T92: 0 | U92: 0 | V92: =+V90+V91 -> 12625.30113 | W92: 0 | X92: 0 | Y92: =+Y90+Y91 -> 12614.85109 | Z92: 0 | AA92: 0 | AB92: =+AB90+AB91 -> 12604.38363
B94: Flussi cassa | C94: =+SUM(D94:AB94) -> -1251.189831 | D94: =+D84-$C68 -> 99500 | E94: =-E87 -> 0 | F94: =-F87 -> 0 | G94: -12593.89873 | H94: 0 | I94: 0 | J94: -12593.89873 | K94: 0 | L94: 0 | M94: -12593.89873 | N94: 0 | O94: 0 | P94: -12593.89873 | Q94: 0 | R94: 0 | S94: -12593.89873 | T94: 0 | U94: 0 | V94: -12593.89873 | W94: 0 | X94: 0 | Y94: -12593.89873 | Z94: 0 | AA94: 0 | AB94: -12593.89873
B95: TIR (TAEG) | C95: =+IRR(D94:AB94)*12 -> 0.01113109265
B100: Fianz. b.t. Bullet i fisso
B102: Condizioni applicate
B103: Debito | C103: 100000
B104: Anni | C104: 1
B105: Rate/anno | C105: 4
B106: Spese istruttoria % | C106: 0.005
B107: Spese istruttoria | C107: =+C106*C103 -> 500
B108: Spese estinzione anticipata | C108: 0.02
B109: T. Mora | C109: 0.143
B110: TAEG | C110: =+C129 -> 0.01502828187
B111: Stipula contratto | C111: =+TODAY() -> 2020-11-06
B112: Scadenza | C112: =+C111+360*C104 -> 2021-11-01
B113: T. Pre amm.to | C113: 0
B116: Tempo | C116: T=0 | D116: =+C111 -> 2020-11-06 | E116: =+D116+30 -> 2020-12-06 | F116: =+E116+30 -> 2021-01-05 | G116: 2021-02-04 | H116: 2021-03-06 | I116: 2021-04-05 | J116: 2021-05-05 | K116: 2021-06-04 | L116: 2021-07-04 | M116: 2021-08-03 | N116: 2021-09-02 | O116: 2021-10-02 | P116: 2021-11-01
B117: T mesi | D117: 0 | E117: 1 | F117: 2 | G117: 3 | H117: 4 | I117: 5 | J117: 6 | K117: 7 | L117: 8 | M117: 9 | N117: 10 | O117: 11 | P117: 12
B118: i Base | C118: 0.01
B119: i variabile = Euribor m | C119: 0
B120: TAN | C120: =C118+C119 -> 0.01
B121: tasso trimestrale | C121: =(C120/$C105) -> 0.0025
B123: Debito residuo | D123: =+C103 -> 100000 | E123: =D123-E124 -> 100000 | F123: =E123-F124 -> 100000 | G123: =F123-G124 -> 100000 | H123: =G123-H124 -> 100000 | I123: =H123-I124 -> 100000 | J123: =I123-J124 -> 100000 | K123: =J123-K124 -> 100000 | L123: =K123-L124 -> 100000 | M123: =L123-M124 -> 100000 | N123: =M123-N124 -> 100000 | O123: =N123-O124 -> 100000 | P123: =O123-P124 -> 0
B124: Quota capitale | C124: =+SUM(D124:AB124) -> 100000 | D124: 0 | E124: 0 | F124: 0 | G124: 0 | H124: 0 | I124: 0 | J124: 0 | K124: 0 | L124: 0 | M124: 0 | N124: 0 | O124: 0 | P124: =+$C103/C104 -> 100000
B125: Quota interessi | C125: =+SUM(D125:AB125) -> 1000 | E125: 0 | F125: 0 | G125: =D123*$C120*(12/$C105)/12 -> 250 | H125: 0 | I125: 0 | J125: =G123*$C120*(12/$C105)/12 -> 250 | K125: 0 | L125: 0 | M125: =J123*$C120*(12/$C105)/12 -> 250 | N125: 0 | O125: 0 | P125: =M123*$C120*(12/$C105)/12 -> 250
B126: Rata trimestrale | C126: 101000 | E126: =+E124+E125 -> 0 | F126: =+F124+F125 -> 0 | G126: 250 | H126: 0 | I126: 0 | J126: 250 | K126: 0 | L126: 0 | M126: 250 | N126: 0 | O126: 0 | P126: 100250
B128: Flussi cassa | C128: =+SUM(D128:P128) -> -1500 | D128: =+D123-$C107 -> 99500 | E128: =-E126 -> 0 | F128: =-F126 -> 0 | G128: -250 | H128: 0 | I128: 0 | J128: -250 | K128: 0 | L128: 0 | M128: -250 | N128: 0 | O128: 0 | P128: -100250
B129: TIR (TAEG) | C129: =+IRR(D128:P128)*12 -> 0.01502828187

Sheet Leasing
B2: FINANZA PRATICA
B3: Leasing
B5: Debt | D5: 100000
B6: T | D6: 10
B7: i | C7: 0.02
B8: Maxicanone iniziale | C8: 0.2 | D8: =+C8*D5 -> 20000
B9: Maxicanone finale | C9: 0.01 | D9: =+C9*D5 -> 1000
B10: Canone | D10: =-PMT($C7,$D6,$D5-$D8-($D9/(1+$C7)^$D6),0) -> 8814.795701
A12: A) | B12: t | C12: 0 | D12: 1 | E12: 2 | F12: 3 | G12: 4 | H12: 5 | I12: 6 | J12: 7 | K12: 8 | L12: 9 | M12: 10
B13: Debito | C13: =+D5-C16 -> 80000 | D13: =+C13-D14-D16 -> 72785.2043 | E13: =+D13-E14-E16 -> 65426.11268 | F13: 57919.83924 | G13: 50263.44032 | H13: 42453.91342 | I13: 34488.19599 | J13: 26363.16421 | K13: 18075.63179 | L13: 9622.348727 | M13: =+L13-M14-M16 -> 1.455191523e-11
B14: Quota Capitale | D14: =+D17-D15 -> 7214.795701 | E14: =+E17-E15 -> 7359.091615 | F14: =+F17-F15 -> 7506.273448 | G14: 7656.398917 | H14: 7809.526895 | I14: 7965.717433 | J14: 8125.031782 | K14: 8287.532417 | L14: 8453.283066 | M14: =+M17-M15 -> 8622.348727
B15: Quota Interessi | D15: =+C13*$C7 -> 1600 | E15: =+D13*$C7 -> 1455.704086 | F15: 1308.522254 | G15: 1158.396785 | H15: 1005.268806 | I15: 849.0782685 | J15: 689.7639198 | K15: 527.2632842 | L15: 361.5126358 | M15: =+L13*$C7 -> 192.4469745
B16: Maxicanone | C16: =+D8 -> 20000 | M16: =+$D9 -> 1000
B17: Canone | D17: =+$D$10 -> 8814.795701 | E17: =+$D$10 -> 8814.795701 | F17: 8814.795701 | G17: 8814.795701 | H17: 8814.795701 | I17: 8814.795701 | J17: 8814.795701 | K17: 8814.795701 | L17: 8814.795701 | M17: 8814.795701
B18: Flusso Cassa | C18: =-C13 -> -80000 | D18: =+D17+D16 -> 8814.795701 | E18: =+E17+E16 -> 8814.795701 | F18: 8814.795701 | G18: 8814.795701 | H18: 8814.795701 | I18: 8814.795701 | J18: 8814.795701 | K18: 8814.795701 | L18: 8814.795701 | M18: 9814.795701
B22: Valore complessivo | D22: 100000
B23: Debito | D23: =+D22 -> 100000
B24: i | D24: 0.02
B25: Anni | D25: 5
B26: Mesi | D26: =+D25*12 -> 60
B27: Canone/anno | C27: 12 | D27: =-PMT(D24/C27,D26,D23-D30-(D31/((1+D24/C27)^(D25*C27-1)))) -> 1386.333276 | E27: =+getformula(D27) -> <-=-RATA(D24/C27;D26;D23-D30-(D31/((1+D24/C27)^(D25*C27-1))))
B28: Canone/anno | D28: =+D27*C27 -> 16635.99931
B29: Canone totale | D29: =+D28*D25 -> 83179.99654
B30: Maxicanone iniziale | C30: 0.2 | D30: =D22*C30 -> 20000
B31: Maxicanone finale | C31: 0.01 | D31: =D22*C31 -> 1000
B32: Spese istruttoria | C32: 0.005 | D32: =D22*C32 -> 500
B33: RID / canone | C33: 1.5 | D33: =C33*D26 -> 90
B34: Totale canoni e altre spese | D34: =+SUM(D29:D33) -> 104769.9965
B36: Anno | D36: 0 | E36: 1 | F36: 2 | G36: 3 | H36: 4 | I36: 5 | J36: 6 | K36: 7 | L36: 8 | M36: 9 | N36: 10 | O36: 11 | P36: 12 | Q36: 13 | R36: 14 | S36: 15 | T36: 16 | U36: 17 | V36: 18 | W36: 19 | X36: 20 | Y36: 21 | Z36: 22 | AA36: 23 | AB36: 24 | AC36: 25 | AD36: 26 | AE36: 27 | AF36: 28 | AG36: 29 | AH36: 30 | AI36: 31 | AJ36: 32 | AK36: 33 | AL36: 34 | AM36: 35 | AN36: 36 | AO36: 37 | AP36: 38 | AQ36: 39 | AR36: 40 | AS36: 41 | AT36: 42 | AU36: 43 | AV36: 44 | AW36: 45 | AX36: 46 | AY36: 47 | AZ36: 48 | BA36: 49 | BB36: 50 | BC36: 51 | BD36: 52 | BE36: 53 | BF36: 54 | BG36: 55 | BH36: 56 | BI36: 57 | BJ36: 58 | BK36: 59 | BL36: 60
B37: Mese | C37: Totale | D37: =+TODAY() -> 2020-11-06 | E37: =+D37+30 -> 2020-12-06 | F37: =+E37+30 -> 2021-01-05 | G37: =+F37+30 -> 2021-02-04 | H37: 2021-03-06 | I37: 2021-04-05 | J37: 2021-05-05 | K37: 2021-06-04 | L37: 2021-07-04 | M37: 2021-08-03 | N37: 2021-09-02 | O37: 2021-10-02 | P37: 2021-11-01 | Q37: 2021-12-01 | R37: 2021-12-31 | S37: 2022-01-30 | T37: 2022-03-01 | U37: 2022-03-31 | V37: 2022-04-30 | W37: 2022-05-30 | X37: 2022-06-29 | Y37: 2022-07-29 | Z37: 2022-08-28 | AA37: 2022-09-27 | AB37: 2022-10-27 | AC37: 2022-11-26 | AD37: 2022-12-26 | AE37: 2023-01-25 | AF37: 2023-02-24 | AG37: 2023-03-26 | AH37: 2023-04-25 | AI37: 2023-05-25 | AJ37: 2023-06-24 | AK37: 2023-07-24 | AL37: 2023-08-23 | AM37: 2023-09-22 | AN37: 2023-10-22 | AO37: 2023-11-21 | AP37: 2023-12-21 | AQ37: 2024-01-20 | AR37: 2024-02-19 | AS37: 2024-03-20 | AT37: 2024-04-19 | AU37: 2024-05-19 | AV37: 2024-06-18 | AW37: 2024-07-18 | AX37: 2024-08-17 | AY37: 2024-09-16 | AZ37: 2024-10-16 | BA37: 2024-11-15 | BB37: 2024-12-15 | BC37: 2025-01-14 | BD37: 2025-02-13 | BE37: 2025-03-15 | BF37: 2025-04-14 | BG37: 2025-05-14 | BH37: 2025-06-13 | BI37: 2025-07-13 | BJ37: 2025-08-12 | BK37: 2025-09-11 | BL37: 2022-12-01
B38: Debito residuo | C38: =+D23 -> 100000 | D38: =+C38-D39-D41 -> 80000 | E38: =+D38-E39-E41 -> 78747.00006 | F38: =+E38-F39-F41 -> 77491.91178 | G38: 76234.73169 | H38: 74975.4563 | I38: 73714.08212 | J38: 72450.60565 | K38: 71185.02338 | L38: 69917.33181 | M38: 68647.52742 | N38: 67375.60669 | O38: 66101.5661 | P38: 64825.4021 | Q38: 63547.11116 | R38: 62266.68973 | S38: 60984.13427 | T38: 59699.44122 | U38: 58412.60702 | V38: 57123.62808 | W38: 55832.50086 | X38: 54539.22175 | Y38: 53243.78718 | Z38: 51946.19354 | AA38: 50646.43726 | AB38: 49344.51471 | AC38: 48040.42229 | AD38: 46734.15639 | AE38: 45425.71337 | AF38: 44115.08962 | AG38: 42802.28149 | AH38: 41487.28535 | AI38: 40170.09755 | AJ38: 38850.71444 | AK38: 37529.13236 | AL38: 36205.34763 | AM38: 34879.3566 | AN38: 33551.15559 | AO38: 32220.74091 | AP38: 30888.10887 | AQ38: 29553.25577 | AR38: 28216.17792 | AS38: 26876.87161 | AT38: 25535.33312 | AU38: 24191.55873 | AV38: 22845.54472 | AW38: 21497.28735 | AX38: 20146.78289 | AY38: 18794.02759 | AZ38: 17439.01769 | BA38: 16081.74944 | BB38: 14722.21908 | BC38: 13360.42284 | BD38: 11996.35693 | BE38: 10630.01759 | BF38: 9261.401007 | BG38: 7890.5034 | BH38: 6517.320963 | BI38: 5141.849889 | BJ38: 3764.086363 | BK38: 2384.026565 | BL38: 1.666666667
B39: Quota capitale* | C39: =+SUM(D39:BL39) -> 78998.33333 | E39: =+E42-E40 -> 1252.999942 | F39: =+F42-F40 -> 1255.088276 | G39: =+G42-G40 -> 1257.180089 | H39: 1259.27539 | I39: 1261.374182 | J39: 1263.476472 | K39: 1265.582266 | L39: 1267.69157 | M39: 1269.804389 | N39: 1271.92073 | O39: 1274.040598 | P39: 1276.163999 | Q39: 1278.290939 | R39: 1280.421424 | S39: 1282.555459 | T39: 1284.693052 | U39: 1286.834207 | V39: 1288.978931 | W39: 1291.127229 | X39: 1293.279108 | Y39: 1295.434573 | Z39: 1297.59363 | AA39: 1299.756286 | AB39: 1301.922547 | AC39: 1304.092418 | AD39: 1306.265905 | AE39: 1308.443015 | AF39: 1310.623753 | AG39: 1312.808126 | AH39: 1314.99614 | AI39: 1317.1878 | AJ39: 1319.383113 | AK39: 1321.582085 | AL39: 1323.784722 | AM39: 1325.99103 | AN39: 1328.201015 | AO39: 1330.414683 | AP39: 1332.632041 | AQ39: 1334.853094 | AR39: 1337.077849 | AS39: 1339.306313 | AT39: 1341.53849 | AU39: 1343.774387 | AV39: 1346.014011 | AW39: 1348.257368 | AX39: 1350.504463 | AY39: 1352.755304 | AZ39: 1355.009896 | BA39: 1357.268246 | BB39: 1359.53036 | BC39: 1361.796244 | BD39: 1364.065904 | BE39: 1366.339347 | BF39: 1368.61658 | BG39: 1370.897607 | BH39: 1373.182437 | BI39: 1375.471074 | BJ39: 1377.763526 | BK39: 1380.059798 | BL39: 1382.359898
B40: Quota interessi | C40: =+SUM(D40:BL40) -> 4181.66321 | E40: =D38*$D24/$C27 -> 133.3333333 | F40: 131.2450001 | G40: 129.1531863 | H40: 127.0578862 | I40: 124.9590938 | J40: 122.8568035 | K40: 120.7510094 | L40: 118.6417056 | M40: 116.5288864 | N40: 114.4125457 | O40: 112.2926778 | P40: 110.1692768 | Q40: 108.0423368 | R40: 105.9118519 | S40: 103.7778162 | T40: 101.6402238 | U40: 99.4990687 | V40: 97.35434503 | W40: 95.20604681 | X40: 93.05416809 | Y40: 90.89870291 | Z40: 88.73964529 | AA40: 86.57698924 | AB40: 84.41072876 | AC40: 82.24085785 | AD40: 80.06737049 | AE40: 77.89026065 | AF40: 75.70952229 | AG40: 73.52514937 | AH40: 71.33713582 | AI40: 69.14547559 | AJ40: 66.95016259 | AK40: =AJ38*$D24/$C27 -> 64.75119073 | AL40: 62.54855393 | AM40: 60.34224606 | AN40: 58.13226101 | AO40: 55.91859265 | AP40: 53.70123484 | AQ40: 51.48018144 | AR40: 49.25542628 | AS40: 47.0269632 | AT40: 44.79478602 | AU40: 42.55888853 | AV40: 40.31926455 | AW40: 38.07590787 | AX40: 35.82881226 | AY40: 33.57797148 | AZ40: 31.32337931 | BA40: 29.06502948 | BB40: 26.80291574 | BC40: 24.5370318 | BD40: 22.2673714 | BE40: 19.99392822 | BF40: 17.71669598 | BG40: 15.43566835 | BH40: 13.150839 | BI40: 10.86220161 | BJ40: 8.569749815 | BK40: 6.273477272 | BL40: 3.973377608
B41: Maxicanone | C41: =+SUM(D41:BL41) -> 21000 | D41: =D30 -> 20000 | BL41: =D31 -> 1000
B42: Rata | C42: =+SUM(D42:BL42) -> 3179.996543 | D42: =-C38+D41 -> -80000 | E42: =+$D27 -> 1386.333276 | F42: =+$D27 -> 1386.333276 | G42: =+$D27 -> 1386.333276 | H42: 1386.333276 | I42: 1386.333276 | J42: 1386.333276 | K42: 1386.333276 | L42: 1386.333276 | M42: 1386.333276 | N42: 1386.333276 | O42: 1386.333276 | P42: 1386.333276 | Q42: 1386.333276 | R42: 1386.333276 | S42: 1386.333276 | T42: 1386.333276 | U42: 1386.333276 | V42: 1386.333276 | W42: 1386.333276 | X42: 1386.333276 | Y42: 1386.333276 | Z42: 1386.333276 | AA42: 1386.333276 | AB42: 1386.333276 | AC42: 1386.333276 | AD42: 1386.333276 | AE42: 1386.333276 | AF42: 1386.333276 | AG42: 1386.333276 | AH42: 1386.333276 | AI42: 1386.333276 | AJ42: 1386.333276 | AK42: 1386.333276 | AL42: 1386.333276 | AM42: 1386.333276 | AN42: 1386.333276 | AO42: 1386.333276 | AP42: 1386.333276 | AQ42: 1386.333276 | AR42: 1386.333276 | AS42: 1386.333276 | AT42: 1386.333276 | AU42: 1386.333276 | AV42: 1386.333276 | AW42: 1386.333276 | AX42: 1386.333276 | AY42: 1386.333276 | AZ42: 1386.333276 | BA42: 1386.333276 | BB42: 1386.333276 | BC42: 1386.333276 | BD42: 1386.333276 | BE42: 1386.333276 | BF42: 1386.333276 | BG42: 1386.333276 | BH42: 1386.333276 | BI42: 1386.333276 | BJ42: 1386.333276 | BK42: 1386.333276 | BL42: 1386.333276
B45: Flussi cassa | C45: =+SUM(D45:BL45) -> 4771.496543 | D45: =-D22+D30+D32+C33 -> -79498.5 | E45: =+E42+E41+$C33 -> 1387.833276 | F45: 1387.833276 | G45: 1387.833276 | H45: 1387.833276 | I45: 1387.833276 | J45: 1387.833276 | K45: 1387.833276 | L45: 1387.833276 | M45: 1387.833276 | N45: 1387.833276 | O45: 1387.833276 | P45: 1387.833276 | Q45: 1387.833276 | R45: 1387.833276 | S45: 1387.833276 | T45: 1387.833276 | U45: 1387.833276 | V45: 1387.833276 | W45: 1387.833276 | X45: 1387.833276 | Y45: 1387.833276 | Z45: 1387.833276 | AA45: 1387.833276 | AB45: 1387.833276 | AC45: 1387.833276 | AD45: 1387.833276 | AE45: 1387.833276 | AF45: 1387.833276 | AG45: 1387.833276 | AH45: 1387.833276 | AI45: 1387.833276 | AJ45: 1387.833276 | AK45: =+AK42+AK41+$C33 -> 1387.833276 | AL45: 1387.833276 | AM45: 1387.833276 | AN45: 1387.833276 | AO45: 1387.833276 | AP45: 1387.833276 | AQ45: 1387.833276 | AR45: 1387.833276 | AS45: 1387.833276 | AT45: 1387.833276 | AU45: 1387.833276 | AV45: 1387.833276 | AW45: 1387.833276 | AX45: 1387.833276 | AY45: 1387.833276 | AZ45: 1387.833276 | BA45: 1387.833276 | BB45: 1387.833276 | BC45: 1387.833276 | BD45: 1387.833276 | BE45: 1387.833276 | BF45: 1387.833276 | BG45: 1387.833276 | BH45: 1387.833276 | BI45: 1387.833276 | BJ45: 1387.833276 | BK45: 1387.833276 | BL45: 2387.833276
B46: TIR (TAEG) | C46: =+IRR(D45:BL45)*12 -> 0.02291141418 | D46: =+getformula(C46) -> <-=+TIR.COST(D45:BL45)*12

Sheet VAN
B2: FINANZA PRATICA
B3: VAN
B5: I t0 | C5: 100000
B6: CF t1 | C6: 20000
B7: r | C7: 0.15
B10: t | C10: 0 | D10: 1 | E10: 2 | F10: 3 | G10: 4 | H10: 5 | I10: 6 | J10: 7 | K10: 8 | L10: 9 | M10: 10 | N10: 11 | O10: 12
B11: CF | C11: =-C5 -> -100000 | D11: =+$C6 -> 20000 | E11: 20000 | F11: 20000 | G11: 20000 | H11: 20000 | I11: 20000 | J11: 20000 | K11: 20000 | L11: 20000 | M11: 20000 | N11: 20000 | O11: 20000
C12: =+C11/(1+$C$7)^C10 -> -100000 | D12: =+D11/(1+$C$7)^D10 -> 17391.30435 | E12: =+E11/(1+$C$7)^E10 -> 15122.87335 | F12: =+F11/(1+$C$7)^F10 -> 13150.32465 | G12: 11435.06491 | H12: 9943.534706 | I12: =+I11/(1+$C$7)^I10 -> 8646.551918 | J12: 7518.740798 | K12: 6538.035477 | L12: 5685.248241 | M12: 4943.694122 | N12: 4298.864454 | O12: 3738.143004
B15: VAN | C15: =+SUM(C12:O12) -> 8412.379975 | D15: =+getformula(C15) -> <-=+SOMMA(C12:O12)
B16: VAN | C16: =+C11+NPV($C$7,D11:O11) -> 8412.379975 | D16: =+getformula(C16) -> <-=+C11+VAN($C$7;D11:O11)
B22: I t0 | C22: 100000
B23: CF t1 | C23: 20000
B24: r | C24: 0.15
B27: Tempo | C27: 2018-01-01 | D27: 2019-03-31 | E27: 2020-01-01 | F27: 2021-01-01 | G27: 2022-01-01 | H27: 2023-01-01 | I27: 2024-01-01 | J27: 2025-01-01 | K27: 2026-01-01 | L27: 2027-01-01 | M27: 2028-01-01 | N27: 2029-01-01 | O27: 2030-01-01
B28: t | C28: 0 | D28: 1 | E28: 2 | F28: 3 | G28: 4 | H28: 5 | I28: 6 | J28: 7 | K28: 8 | L28: 9 | M28: 10 | N28: 11 | O28: 12
B29: CF | C29: =-C22 -> -100000 | D29: =+$C23 -> 20000 | E29: =+$C23 -> 20000 | F29: 20000 | G29: =+$C23 -> 20000 | H29: 20000 | I29: 20000 | J29: 20000 | K29: 20000 | L29: 20000 | M29: 20000 | N29: 20000 | O29: 20000
C30: =+C29/(1+$C24)^C28 -> -100000 | D30: =+D29/(1+$C24)^(((D27-$C27)/365)) -> 16808.6123 | E30: =+E29/(1+$C24)^(((E27-$C27)/365)) -> 15122.87335 | F30: 13145.29023 | G30: 11430.68716 | H30: 9939.727962 | I30: 8643.241706 | J30: 7512.985009 | K30: 6533.030443 | L30: 5680.896037 | M30: 4939.909598 | N30: 4293.929062 | O30: 3733.851359
B33: VAN | C33: =+SUM(C30:O30) -> 7785.034203 | D33: =+getformula(C33) -> <-=+SOMMA(C30:O30)
B34: VAN.X | C34: =+XNPV($C24,C29:O29,C27:O27) -> 7785.034203 | D34: =+getformula(C34) -> <-=+VAN.X($C24;C29:O29;C27:O27)

Sheet TIR
B2: FINANZA PRATICA
B3: TIR
B5: I t0 | C5: 100000
B6: CF t1 | C6: 20000
B7: r | C7: 0.15
B10: t | C10: 0 | D10: 1 | E10: 2 | F10: 3 | G10: 4 | H10: 5 | I10: 6 | J10: 7 | K10: 8 | L10: 9 | M10: 10 | N10: 11 | O10: 12
B11: CF | C11: =-C5 -> -100000 | D11: =+$C6 -> 20000 | E11: 20000 | F11: 20000 | G11: 20000 | H11: 20000 | I11: 20000 | J11: 20000 | K11: 20000 | L11: 20000 | M11: 20000 | N11: 20000 | O11: 20000
C12: =+C11/(1+$C$7)^C10 -> -100000 | D12: =+D11/(1+$C$7)^D10 -> 17391.30435 | E12: =+E11/(1+$C$7)^E10 -> 15122.87335 | F12: =+F11/(1+$C$7)^F10 -> 13150.32465 | G12: 11435.06491 | H12: 9943.534706 | I12: 8646.551918 | J12: 7518.740798 | K12: 6538.035477 | L12: 5685.248241 | M12: 4943.694122 | N12: 4298.864454 | O12: 3738.143004
B15: TIR | C15: =+IRR(C11:O11) -> 0.1694255086 | D15: =+getformula(C15) -> <-=+TIR.COST(C11:O11)
B22: I t0 | C22: 100000
B23: CF t1 | C23: 20000
B24: r | C24: 0.15
B27: Tempo | C27: 2018-01-01 | D27: 2019-03-31 | E27: 2020-01-01 | F27: 2021-01-01 | G27: 2022-01-01 | H27: 2023-01-01 | I27: 2024-01-01 | J27: 2025-01-01 | K27: 2026-01-01 | L27: 2027-01-01 | M27: 2028-01-01 | N27: 2029-01-01 | O27: 2030-01-01
B28: t | C28: 0 | D28: 1 | E28: 2 | F28: 3 | G28: 4 | H28: 5 | I28: 6 | J28: 7 | K28: 8 | L28: 9 | M28: 10 | N28: 11 | O28: 12
B29: CF | C29: =-C22 -> -100000 | D29: =+$C23 -> 20000 | E29: 20000 | F29: 20000 | G29: 20000 | H29: 20000 | I29: 20000 | J29: 20000 | K29: 20000 | L29: 20000 | M29: 20000 | N29: 20000 | O29: 20000
C30: =+C29/(1+$C24)^C28 -> -100000 | D30: =+D29/(1+$C24)^(((D27-$C27)/365)) -> 16808.6123 | E30: =+E29/(1+$C24)^(((E27-$C27)/365)) -> 15122.87335 | F30: 13145.29023 | G30: 11430.68716 | H30: 9939.727962 | I30: 8643.241706 | J30: 7512.985009 | K30: 6533.030443 | L30: 5680.896037 | M30: 4939.909598 | N30: 4293.929062 | O30: 3733.851359
B33: TIR.X | C33: =+XIRR(C29:O29,C27:O27,0) -> 0.167756665 | D33: =+getformula(C33) -> <-=+TIR.X(C29:O29;C27:O27;0)

Sheet Tab 1 dimens
B2: FINANZA PRATICA
B3: tabella 1 dimensione
B5: I t0 | C5: 1000000
B6: CF t1 | C6: 50000
B7: g | C7: 0.03
B8: WACC | C8: 0.15
B11: t | C11: 0 | D11: 1 | E11: 2 | F11: 3 | G11: 4 | H11: 5
B12: CF | C12: =-C5 -> -1000000 | D12: 500000 | E12: =+D12*(1+$C$7) -> 515000 | F12: =+E12*(1+$C$7) -> 530450 | G12: =+F12*(1+$C$7) -> 546363.5 | H12: 562754.405
B13: =+SUM(C13:J13) -> 765149.5851 | C13: =+C12/(1+$C$8)^C11 -> -1000000 | D13: =+D12/(1+$C$8)^D11 -> 434782.6087 | E13: 389413.9887 | F13: 348779.4855 | G13: 312385.1044 | H13: 279788.3979
B16: VAN | C16: =+C12+NPV($C$8,D12:J12) -> 765149.5851
B17: TIR | C17: =+IRR(C12:J12,0) -> 0.434615261
B20: tabella 1 dimensione
D21: VAN | E21: TIR
B22: g | D22: =+C16 -> 765149.5851 | E22: =+C17 -> 0.434615261
C23: 0 | D23: 676077.549 | E23: 0.410414965
C24: 0.05 | D24: 827312.4972 | E24: 0.4506724641
C25: 0.1 | D25: 992918.9603 | E25: 0.490556005
C26: 0.15 | D26: 1173913.043 | E26: 0.5300814103
C27: 0.2 | D27: 1371348.14 | E27: 0.5692634932
C28: 0.25 | D28: 1586314.931 | E28: 0.6081161281
C29: 0.3 | D29: 1819941.386 | E29: 0.6466523173

Sheet Tab 2 dimens
B2: FINANZA PRATICA
B3: tabella 2 dimensioni
B5: I t0 | C5: 1000000
B6: CF t1 | C6: 50000
B7: g | C7: 0.05
B8: WACC | C8: 0.15
B11: t | C11: 0 | D11: 1 | E11: 2 | F11: 3 | G11: 4 | H11: 5
B12: CF | C12: =-C5 -> -1000000 | D12: 500000 | E12: =+D12*(1+$C$7) -> 525000 | F12: =+E12*(1+$C$7) -> 551250 | G12: =+F12*(1+$C$7) -> 578812.5 | H12: 607753.125
B13: =+SUM(C13:J13) -> 827312.4972 | C13: =+C12/(1+$C$8)^C11 -> -1000000 | D13: =+D12/(1+$C$8)^D11 -> 434782.6087 | E13: 396975.4253 | F13: 362455.8231 | G13: 330937.9255 | H13: 302160.7146
B16: VAN | C16: =+C12+NPV($C$8,D12:J12) -> 827312.4972
B17: TIR | C17: =+IRR(C12:J12,0) -> 0.4506724641
B20: tabella 2 dimensioni
D21: WACC
B22: g | C22: =+C16 -> 827312.4972 | D22: 0 | E22: 0.05 | F22: 0.1 | G22: 0.15 | H22: 0.2 | I22: 0.25 | J22: 0.3
C23: 0 | D23: 1500000 | E23: 1762815.625 | F23: 2052550 | G23: 2371190.625 | H23: 2720800 | I23: 3103515.625 | J23: 3521550
C24: 0.05 | D24: 1164738.335 | E24: 1380952.381 | F24: 1618767.264 | G24: 1879754.933 | H24: 2165546.102 | I24: 2477830.25 | J24: 2818355.619
C25: 0.1 | D25: 895393.3847 | E25: 1075295.636 | F25: 1272727.273 | G25: 1488945.66 | H25: 1725254.733 | I25: 1983004.995 | J25: 2263593.52
C26: 0.15 | D26: 676077.549 | E26: 827312.4972 | F26: 992918.9603 | G26: 1173913.043 | H26: 1371348.14 | I26: 1586314.931 | J26: 1819941.386
C27: 0.2 | D27: 495306.07 | E27: 623636.8815 | F27: 763860.7575 | G27: 916806.5703 | H27: 1083333.333 | I27: 1264330.201 | J27: 1460716.467
C28: 0.25 | D28: 344640 | E28: 454470.144 | F28: 574226.944 | G28: 704592.384 | H28: 846273.024 | I28: 1000000 | J28: 1166529.024
C29: 0.3 | D29: 217784.8761 | E29: 312520.5363 | F29: 415607.0812 | G29: 527610.1017 | H29: 649115.3887 | I29: 780728.9324 | J29: 923076.9231

Sheet indici
B2: FINANZA PRATICA
B3: Indici
B5: Indici rotazione capitale circolante
B6: Indici di liquidità
B7: Indici struttura finanziaria
B8: Indici redditività
B9: Indici mercato e multipli borsa
B11: Nome indice | C11: Sintesi | D11: Formula | E11: =+CONCATENATE(C11," ; ",B11," ; ",D11) -> Sintesi ; Nome indice ; Formula
B13: Indici rotazione capitale circolante | E13: =+B13 -> Indici rotazione capitale circolante
B14: Tempo medio incasso | C14: TMI | D14: Clienti/(Ricavi/360) | E14: =+CONCATENATE(C14," ; ",B14," ; ",D14) -> TMI ; Tempo medio incasso ; Clienti/(Ricavi/360)
B15: Tempo medio pagamenti | C15: TMP | D15: Fornitori/(Costi materie e servizi/360) | E15: =+CONCATENATE(C15," ; ",B15," ; ",D15) -> TMP ; Tempo medio pagamenti ; Fornitori/(Costi materie e servizi/360)
B16: Tempo medio giacenza scorte | C16: TMGS | D16: Magazzino/(Costo venduto/360) | E16: TMGS ; Tempo medio giacenza scorte ; Magazzino/(Costo venduto/360)
B17: Tempo medio giacenze materie prime | C17: TMGM | D17: Magazzino matierie prime/(Acquisti/360) | E17: TMGM ; Tempo medio giacenze materie prime ; Magazzino matierie prime/(Acquisti/360)
B18: Tempo medio prodotti finiti | C18: TMPF | D18: Magazzino prodotti finiti/(Coste del venduto/360) | E18: TMPF ; Tempo medio prodotti finiti ; Magazzino prodotti finiti/(Coste del venduto/360)
B19: Tempo medio giacenze semilavorati | C19: TMGS | D19: Magazzino semilavorati/(% costo del venduto/360) | E19: TMGS ; Tempo medio giacenze semilavorati ; Magazzino semilavorati/(% costo del venduto/360)
B22: Indici liquidità e copertura | E22: =+B22 -> Indici liquidità e copertura
B23: Indice copertura oneri finanziari o Interest Coverage Ratio | C23: ICR | D23: Reddito Operativo EBIT/Oneri finanziari | E23: =+CONCATENATE(C23," ; ",B23," ; ",D23) -> ICR ; Indice copertura oneri finanziari o Interest Coverage Ratio ; Reddito Operativo EBIT/Oneri finanziari
B24: Indice copertura debito o Debti Servise Coverage Ratio | C24: DSCR | D24: Margine Operativo Lordo EBITDA/(Quote capitale debito + Oneri finanziari) | E24: DSCR ; Indice copertura debito o Debti Servise Coverage Ratio ; Margine Operativo Lordo EBITDA/(Quote capitale debito + Oneri finanziari)
B25: Indice copertura della liquidità oneri finanziari | C25: ICR* | D25: Margine Operativo Lordo EBITDA/Oneri finanziari | E25: ICR* ; Indice copertura della liquidità oneri finanziari ; Margine Operativo Lordo EBITDA/Oneri finanziari
B26: Indice copertura posizione finanziaria netta | C26: ICPFN | D26: Margine Operativo Lordo EBITDA/Posizione Finanziaria Netta | E26: ICPFN ; Indice copertura posizione finanziaria netta ; Margine Operativo Lordo EBITDA/Posizione Finanziaria Netta
B27: Indice liquidità primaria o immediata o acid test | C27: ILI | D27: (Cassa+Attività immediate)/Passività a breve termine | E27: ILI ; Indice liquidità primaria o immediata o acid test ; (Cassa+Attività immediate)/Passività a breve termine
B28: Indice liquidità secondaria o disponibilità | C28: ID | D28: Attività a breve termine/Passività a breve termine | E28: ID ; Indice liquidità secondaria o disponibilità ; Attività a breve termine/Passività a breve termine
B29: Indice copertura immobilizzazioni | C29: IC | D29: Attività a lungo termine/(Passività a lungo termine+Capitale Netto) | E29: IC ; Indice copertura immobilizzazioni ; Attività a lungo termine/(Passività a lungo termine+Capitale Netto)
B32: Indici struttura finanziaria | E32: =+B32 -> Indici struttura finanziaria
B33: Posizione Finanziaria Netta su Capitale netto o Leverage/Equity o Debt Equity | C33: Debt/Equity | D33: PFN/Capitale netto | E33: =+CONCATENATE(C33," ; ",B33," ; ",D33) -> Debt/Equity ; Posizione Finanziaria Netta su Capitale netto o Leverage/Equity o Debt Equity ; PFN/Capitale netto
B34: Posizione Finanziaria Netta su Capitale netto e PFN o Leverage/Capital o Debt Capital | C34: Debt Capital | D34: PFN/(Capitale netto+Posizione finanziaria Netta) | E34: Debt Capital ; Posizione Finanziaria Netta su Capitale netto e PFN o Leverage/Capital o Debt Capital ; PFN/(Capitale netto+Posizione finanziaria Netta)
B37: Indici redditività | E37: =+B37 -> Indici redditività
B38: Rendimento Investimenti o Return On Investment | C38: ROI | D38: Reddito Operativo EBIT/Capitale Investito Netto Operativo | E38: =+CONCATENATE(C38," ; ",B38," ; ",D38) -> ROI ; Rendimento Investimenti o Return On Investment ; Reddito Operativo EBIT/Capitale Investito Netto Operativo
B39: Rendimento Netto o Return On Equity | C39: ROE | D39: Utile netto/Capitale proprio | E39: ROE ; Rendimento Netto o Return On Equity ; Utile netto/Capitale proprio
B40: Rendimento Vendite o Return On Sales | C40: ROS | D40: Reddito Operativo EBIT/Ricavi | E40: ROS ; Rendimento Vendite o Return On Sales ; Reddito Operativo EBIT/Ricavi
B41: Turnover Capitale Investito Netto Operativo | C41: Turnover/CINO | D41: Ricavi/Capitale Investito Netto Operativo | E41: Turnover/CINO ; Turnover Capitale Investito Netto Operativo ; Ricavi/Capitale Investito Netto Operativo
B44: Indici di merato (multipli di Borsa) | E44: =+B44 -> Indici di merato (multipli di Borsa)
B45: Rapporto Prezzo - Utili | C45: P/E | D45: Prezzo per Azione / Utili per Azione (EPS)
B46: Rapporto valore di mercato su valore contabile | C46: Pm/Pc | D46: Prezzo per Azione / Valore contabile per azione
B47: Multiplo EV/EBIT | C47: EV/EBIT | D47: Enterprise value / Reddito operativo
B48: Multiplo EV/EBITDA | C48: EV/EBITDA | D48: Enterprise value / Margine Operativo Lordo
